fUSD/lending_fUSD_20240801
["ID","MTS","AMOUNT","RATE_DAILY","PERIOD"]
[333827823,1722534643698,-969.8750007,0.00012899,2]
[333827825,1722534643707,-969.8750007,0.00012899,2]
[333827827,1722534643716,-969.8750007,0.00012899,2]
[333827829,1722534643726,-969.8750007,0.00012899,2]
[333827831,1722534643735,-969.8750007,0.00012899,2]
[333827833,1722534643745,-969.8750007,0.00012899,2]
[333827835,1722534643755,-969.8750007,0.00012899,2]
[333827837,1722534643764,-969.8750007,0.00012899,2]
[333827839,1722534643773,-969.8750007,0.00012899,2]
[333827840,1722534643784,-969.8750007,0.00012899,2]
[333827842,1722534643798,-969.8750007,0.00012899,2]
[333827845,1722534643807,-969.8750007,0.00012899,2]
[333827847,1722534643817,-969.8750007,0.00012899,2]
[333827849,1722534643827,-969.8750007,0.00012899,2]
[333827851,1722534643837,-511.36363636,0.00012899,2]
[333827852,1722534643846,-511.36363636,0.00012899,2]
[333827854,1722534643856,-969.8750007,0.00012899,2]
[333827856,1722534643866,-969.8750007,0.00012899,2]
[333827858,1722534643876,-969.8750007,0.00012899,2]
[333827860,1722534643886,-969.8750007,0.00012899,2]
[333827862,1722534643895,-969.8750007,0.00012899,2]
[333827864,1722534643905,-511.36363636,0.00012899,2]
[333827866,1722534643915,-969.8750007,0.00012899,2]
[333827868,1722534643925,-511.36363636,0.00012899,2]
[333827870,1722534643935,-511.36363636,0.00012899,2]
[333827872,1722534643944,-969.8750007,0.00012899,2]
[333827874,1722534643954,-511.36363636,0.00012899,2]
[333827876,1722534643964,-511.36363636,0.00012899,2]
[333827878,1722534643974,-969.8750007,0.00012899,2]
[333827880,1722534643984,-511.36363636,0.00012899,2]
[333827882,1722534643994,-511.36363636,0.00012899,2]
[333827884,1722534644005,-511.36363636,0.00012899,2]
[333827886,1722534644015,-969.8750007,0.00012899,2]
[333827888,1722534644024,-511.36363636,0.00012899,2]
[333827891,1722534644039,-511.36363636,0.00012899,2]
[333827893,1722534644049,-969.8750007,0.00012899,2]
[333827895,1722534644059,-511.36363636,0.00012899,2]
[333827897,1722534644069,-511.36363636,0.00012899,2]
[333827898,1722534644079,-511.36363636,0.00012899,2]
[333827900,1722534644089,-511.36363636,0.00012899,2]
[333827901,1722534644101,-511.36363636,0.00012899,2]
[333827903,1722534644454,-511.36363636,0.00012899,2]
[333827904,1722534644466,-511.36363636,0.00012899,2]
[333827905,1722534644477,-511.36363636,0.00012899,2]
[333827906,1722534644487,-511.36363636,0.00012899,2]
[333827907,1722534644497,-1000.0,0.000129,2]
[333827908,1722534644509,-5000.0,0.000129,2]
[333827909,1722534644519,-176.76776976,0.000129,2]
[333827910,1722534644530,-587.41617165,0.000129,2]
[333827911,1722534644543,-246.92515543,0.000129,2]
[333827912,1722534644553,-2900.0,0.000129,4]
[333827913,1722534644563,-1249.2997162,0.000129,2]
[333827914,1722534644573,-17240.56532471,0.000129,2]
[333827915,1722534644583,-184.1543007,0.000129,2]
[333827916,1722534644593,-398.0801336,0.000129,2]
[333827917,1722534644603,-265.17493776,0.00012924,2]
[333827918,1722534644613,-454.12693481,0.00012924,2]
[333827919,1722534644623,-454.12693481,0.00012928,2]
[333827920,1722534644632,-155.0,0.00012928,2]
[333827921,1722534644642,-155.0,0.00012928,2]
[333827922,1722534644652,-1000.0,0.0001297,2]
[333827923,1722534644662,-1000.0,0.0001297,2]
[333827924,1722534644671,-1000.0,0.0001297,2]
[333827925,1722534644681,-1394.69729128,0.0001297,2]
[333827926,1722534644691,-200.0,0.00012973,2]
[333827927,1722534644701,-1345.08973932,0.00012985,3]
[333827928,1722534644710,-350.038566,0.00012986,2]
[333827929,1722534644720,-350.038566,0.00012986,2]
[333827930,1722534644729,-215.31,0.00012986,2]
[333827931,1722534644739,-215.31,0.00012986,2]
[333827932,1722534644748,-151.0,0.00012986,2]
[333827933,1722534644758,-151.0,0.00012986,2]
[333827934,1722534644767,-294.231907,0.00012986,2]
[333827935,1722534644777,-159.783447,0.00012986,2]
[333827936,1722534644786,-159.783447,0.00012986,2]
[333827937,1722534644796,-151.0,0.00012986,2]
[333827938,1722534644806,-163.765144,0.00012986,2]
[333827939,1722534644816,-151.609086,0.00012986,2]
[333827940,1722534644825,-151.0,0.00012986,2]
[333827941,1722534644836,-151.0,0.00012986,2]
[333827942,1722534644846,-151.0,0.00012986,2]
[333827943,1722534644856,-151.0,0.00012986,2]
[333827944,1722534644866,-151.0,0.00012986,2]
[333827945,1722534644875,-151.0,0.00012986,2]
[333827946,1722534644885,-151.0,0.00012986,2]
[333827947,1722534644895,-151.0,0.00012986,2]
[333827948,1722534644904,-389.25311,0.00012986,2]
[333827949,1722534644914,-218.76029,0.00012986,2]
[333827950,1722534644924,-265.663986,0.00012986,2]
[333827951,1722534644933,-389.25311,0.00012986,2]
[333827952,1722534644943,-265.663986,0.00012986,2]
[333827953,1722534644952,-319.498086,0.00012986,2]
[333827954,1722534644962,-319.498086,0.00012986,2]
[333827955,1722534644972,-151.0,0.00012986,2]
[333827956,1722534644982,-200.0,0.00012986,2]
[333827957,1722534644992,-151.0,0.00012986,2]
[333827958,1722534645002,-200.0,0.00012986,2]
[333827959,1722534645012,-151.0,0.00012986,2]
[333827960,1722534645022,-151.0,0.00012986,2]
[333827961,1722534645031,-2070.788647,0.00012986,2]
[333827962,1722534645043,-2070.788647,0.00012986,2]
[333827963,1722534645053,-2070.788647,0.00012986,2]
[333827964,1722534645063,-2070.788647,0.00012986,2]
[333827965,1722534645074,-209.930402,0.00012986,2]
[333827966,1722534645084,-209.930402,0.00012986,2]
[333827967,1722534645096,-209.930402,0.00012986,2]
[333827968,1722534645107,-209.930402,0.00012986,2]
[333827969,1722534645117,-151.0,0.00012986,2]
[333827970,1722534645126,-274.062206,0.00012986,2]
[333827971,1722534645136,-151.851563,0.00012986,2]
[333827972,1722534645147,-529.218633,0.00012986,2]
[333827973,1722534645157,-529.218633,0.00012986,2]
[333827974,1722534645166,-151.0,0.00012986,2]
[333827975,1722534645177,-301934.0,0.00012986,2]
[333827976,1722534645187,-3867.0,0.00012986,2]
[333827977,1722534645197,-627.0,0.00012986,2]
[333827978,1722534645207,-902.0,0.00012986,2]
[333827979,1722534645217,-150.71639531,0.00012986,2]
[333827980,1722534645226,-429.03,0.00012986,2]
[333827981,1722534645236,-2424.54979713,0.00012989,2]
[333827982,1722534645246,-116441.69452932,0.0001299,2]
[333827983,1722534645256,-151.0,0.0001299,2]
[333827984,1722534645266,-151.0,0.0001299,2]
[333827985,1722534645276,-151.0,0.0001299,2]
[333827986,1722534645287,-151.0,0.0001299,2]
[333827987,1722534645297,-389.25311,0.0001299,2]
[333827989,1722534645308,-265.663986,0.0001299,2]
[333827991,1722534645318,-389.25311,0.0001299,2]
[333827993,1722534645327,-265.663986,0.0001299,2]
[333827994,1722534645338,-319.498086,0.0001299,2]
[333827995,1722534645348,-319.498086,0.0001299,2]
[333827996,1722534645358,-203.035756,0.0001299,2]
[333827997,1722534645367,-200.0,0.0001299,2]
[333827998,1722534645377,-151.0,0.0001299,2]
[333827999,1722534645387,-200.0,0.0001299,2]
[333828000,1722534645399,-529.218633,0.0001299,2]
[333828001,1722534645410,-529.218633,0.0001299,2]
[333828002,1722534645420,-172.90484279,0.00012997,2]
[333828003,1722534645430,-518.71452837,0.00012997,2]
[333828004,1722534645441,-316262.07214,0.00012999,2]
[333828005,1722534645450,-350.038566,0.00012999,2]
[333828006,1722534645460,-350.038566,0.00012999,2]
[333828007,1722534645470,-215.31,0.00012999,2]
[333828008,1722534645480,-215.31,0.00012999,2]
[333828009,1722534645490,-151.0,0.00012999,2]
[333828010,1722534645500,-159.783447,0.00012999,2]
[333828011,1722534645510,-159.783447,0.00012999,2]
[333828012,1722534645520,-151.0,0.00012999,2]
[333828013,1722534645531,-151.0,0.00012999,2]
[333828014,1722534645544,-151.0,0.00012999,2]
[333828015,1722534645554,-151.0,0.00012999,2]
[333828017,1722534645563,-151.0,0.00012999,2]
[333828018,1722534645573,-389.25311,0.00012999,2]
[333828019,1722534645583,-265.663986,0.00012999,2]
[333828020,1722534645592,-389.25311,0.00012999,2]
[333828021,1722534645602,-265.663986,0.00012999,2]
[333828022,1722534645611,-319.498086,0.00012999,2]
[333828023,1722534645621,-319.498086,0.00012999,2]
[333828024,1722534645631,-200.0,0.00012999,2]
[333828025,1722534645640,-151.0,0.00012999,2]
[333828026,1722534645650,-200.0,0.00012999,2]
[333828027,1722534645660,-151.0,0.00012999,2]
[333828028,1722534645670,-2070.788647,0.00012999,2]
[333828029,1722534645680,-2070.788647,0.00012999,2]
[333828030,1722534645691,-209.930402,0.00012999,2]
[333828031,1722534645701,-209.930402,0.00012999,2]
[333828032,1722534645711,-150.0,0.00012999,2]
[333828033,1722534645721,-529.218633,0.00012999,2]
[333828034,1722534645730,-529.218633,0.00012999,2]
[333828035,1722534645740,-604.02925435,0.00012999,2]
[333828036,1722534645749,-881791.09873611,0.00013,2]
[333828170,1722534647399,-366936.59996874,0.00013,2]
[333828175,1722534647438,-316.03104193,0.00011262,2]
[333828177,1722534647449,-631.69220731,0.00011262,2]
[333828179,1722534647459,-5637.56359967,0.00013,2]
[333828181,1722534647470,-19807.92,0.00013,2]
[333828204,1722534647689,-12921.63839813,0.000108,2]
[333828206,1722534647701,-1058.9027694,0.000108,2]
[333828209,1722534647712,-3375.53455105,0.000108,2]
[333828211,1722534647724,-677.58267868,0.000108,2]
[333828213,1722534647736,-68343.28316802,0.000108,2]
[333828215,1722534647749,-13623.05843472,0.000108,2]
[333828217,1722534647759,-155.0,0.00011105,2]
[333828219,1722534647768,-2520.38116448,0.00011444,2]
[333828221,1722534647777,-686.31468402,0.0001185,2]
[333828223,1722534647789,-265.17493776,0.00012924,2]
[333828224,1722534647800,-13305.02387374,0.00013,2]
[333828226,1722534647811,-689.02132507,0.00013,2]
[333828228,1722534647821,-324.2733,0.00013,2]
[333828230,1722534647833,-644.99746388,0.00013,2]
[333828232,1722534647843,-1224.96970469,0.00013,2]
[333828234,1722534647859,-155.0,0.00011105,2]
[333828235,1722534647868,-193.7775,0.00013,2]
[333828237,1722534647880,-473441.71617927,0.00013,2]
[333828239,1722534647891,-892.40355142,0.00013,2]
[333828241,1722534647902,-760.32601188,0.00013,2]
[333828243,1722534647914,-131133.21504609,0.00013,2]
[333828244,1722534647926,-292.60799999,0.00013,2]
[333828246,1722534647936,-651.01,0.00013,2]
[333828249,1722534647962,-4603.00137371,0.00013,2]
[333828251,1722534647973,-947.54140818,0.00013,2]
[333828257,1722534648039,-170.948,0.00012388,2]
[333828259,1722534648048,-6474.23038912,0.00013,2]
[333828261,1722534648058,-305.3305634,0.00013,2]
[333828262,1722534648069,-296.95776435,0.00013,2]
[333828264,1722534648081,-566.62860673,0.00013,2]
[333828266,1722534648093,-31260.49999999,0.00013,2]
[333828268,1722534648107,-8066.04598072,0.00013,2]
[333828296,1722534648435,-339683.36592,0.00013,2]
[333828298,1722534648446,-1251.25,0.00013,2]
[333828300,1722534648458,-317.58278286,0.00013,2]
[333828302,1722534648469,-1094.78843146,0.00013,2]
[333828304,1722534648484,-3102.15389739,0.00013,2]
[333828306,1722534648495,-7055.86993714,0.00013,2]
[333828308,1722534648505,-1250.32,0.00013,2]
[333828334,1722534648780,-339.53860701,0.000107,2]
[333828336,1722534648793,-3211.161302,0.000107,2]
[333828338,1722534648808,-254.04196141,0.000107,2]
[333828342,1722534648832,-704.5454544,0.000107,2]
[333828344,1722534648843,-1978.34673438,0.000107,2]
[333828345,1722534648856,-273.47633085,0.000107,2]
[333828346,1722534648868,-289.00196512,0.000107,2]
[333828347,1722534648880,-1370.44674431,0.000107,2]
[333828348,1722534648892,-782.5125,0.000107,2]
[333828349,1722534648909,-1560.95,0.000107,2]
[333828350,1722534648935,-13561.3457961,0.000107,2]
[333828479,1722534722267,-432.98659919,0.0001,2]
[333828481,1722534722325,-78.51160444,0.0001,2]
[333828489,1722534784062,155.0,0.0001,2]
[333828490,1722534787587,442.48839556,0.0001,2]
[333828498,1722534900244,534.12654164,9.083e-05,2]
[333828499,1722534900270,462.20345836,9.083e-05,2]
[333828501,1722534933550,-150.9,0.0001337,30]
[333828502,1722534933595,-150.0,0.00015,30]
[333828505,1722534957866,-150.0,0.00015,15]
[333828509,1722534969266,31249.77170405,9.083e-05,2]
[333828510,1722534981598,1267.89314635,9.083e-05,2]
[333828512,1722535013803,1309.06994225,9.083e-05,2]
[333828513,1722535042931,1000.0,0.00025,60]
[333828514,1722535050063,1000.0,0.00025,60]
[333828515,1722535053323,1000.0,0.00025,60]
[333828516,1722535069848,1000.0,0.00025,60]
[333828518,1722535077360,942.0,0.00025,60]
[333828524,1722535401649,946.51,8.219e-05,2]
[333828525,1722535431082,150.9,0.0001337,30]
[333828526,1722535451671,1267.89314635,8.219e-05,2]
[333828527,1722535456978,7785.59685365,8.219e-05,2]
[333828528,1722535457002,10000.0,8.219e-05,2]
[333828529,1722535457025,10000.0,8.219e-05,2]
[333828530,1722535457048,10000.0,8.219e-05,2]
[333828531,1722535457070,10000.0,8.219e-05,2]
[333828532,1722535457096,2214.40314635,8.219e-05,2]
[333828535,1722535478836,1309.06994225,8.219e-05,2]
[333828536,1722535502669,150.0,0.00015,15]
[333828545,1722535561422,1000.0,0.00027,120]
[333828583,1722535767787,2219.47,9.493e-05,2]
[333828585,1722535830850,254.41484173,9.493e-05,2]
[333828594,1722535831705,-5993.974656,9.515e-05,2]
[333828595,1722535832329,-3082.03617125,9.515e-05,2]
[333828596,1722535832634,-923.98917275,9.515e-05,2]
[333828597,1722535832644,-826.01082725,9.527e-05,2]
[333828598,1722535832656,-72.39917275,9.527e-05,2]
[333828599,1722535832666,-668.61,9.575e-05,2]
[333828600,1722535832676,-427.19,9.579e-05,2]
[333828602,1722535832686,-96.88494525,9.587e-05,2]
[333828604,1722535832698,-203.11505475,9.587e-05,2]
[333828606,1722535832708,-300.0,9.587e-05,2]
[333828607,1722535832718,-50000.0,9.587e-05,2]
[333828608,1722535832729,-23900.0,9.588e-05,2]
[333828609,1722535832738,-249.47,9.625e-05,2]
[333828610,1722535832748,-1975.42,9.716e-05,2]
[333828611,1722535832758,-2000.0,9.834e-05,2]
[333828612,1722535832767,-532.35,9.872e-05,2]
[333828613,1722535832777,-3364.8036,9.9e-05,2]
[333828614,1722535832787,-150.0,9.906e-05,2]
[333828615,1722535832797,-250.0,9.907e-05,2]
[333828616,1722535832806,-646.34,9.907e-05,2]
[333828617,1722535832816,-3452.03121324,9.99e-05,2]
[333828618,1722535832825,-348.6830164,0.0001,2]
[333828619,1722535832835,-412.76630026,0.0001,2]
[333828620,1722535832845,-170.34699346,0.0001,2]
[333828621,1722535832855,-299.71268725,0.0001,2]
[333828622,1722535832864,-449.14284782,0.0001,2]
[333828623,1722535832874,-340.68338463,0.0001,4]
[333828624,1722535832883,-1049.72746869,0.0001,2]
[333828625,1722535832893,-155.0,0.0001,2]
[333828626,1722535832903,-1694.62,0.0001,2]
[333828627,1722535832914,-711.79,0.00010264,2]
[333828628,1722535832923,-800.0,0.00010401,2]
[333828629,1722535832933,-946.51,0.00010462,2]
[333828630,1722535832942,-2500.0,0.000105,2]
[333828631,1722535832952,-420.0,0.00010546,2]
[333828632,1722535832961,-13984.6342,0.000106,2]
[333828633,1722535832977,-73279.8279,0.000106,2]
[333828634,1722535832988,-91034.18810442,0.000107,2]
[333828635,1722535832997,-5233.2771,0.000107,2]
[333828636,1722535833007,-306.17,0.000107,2]
[333828637,1722535833017,-65218.36350523,0.000107,2]
[333828638,1722535833035,-34781.63649477,0.000107,2]
[333828639,1722535833044,-3250.2608,0.000107,2]
[333828640,1722535833054,-395.80581555,0.000107,2]
[333828641,1722535833066,-245000.0,0.000108,2]
[333828642,1722535833075,-1000.0,0.000108,2]
[333828643,1722535833085,-39105.0603,0.000108,2]
[333828644,1722535833094,-499.99,0.00010829,2]
[333828645,1722535833103,-26796.58453108,0.00010899,2]
[333828646,1722535833119,-1764.26681519,0.00010899,2]
[333828647,1722535833141,-1000.0,0.000109,2]
[333828648,1722535833159,-1000.0,0.000109,2]
[333828649,1722535833179,-1000.0,0.000109,2]
[333828650,1722535833200,-1000.0,0.000109,2]
[333828651,1722535833220,-1000.0,0.000109,2]
[333828652,1722535833240,-1000.0,0.000109,3]
[333828653,1722535833255,-1000.0,0.000109,3]
[333828654,1722535833273,-1000.0,0.000109,2]
[333828655,1722535833293,-1000.0,0.000109,2]
[333828656,1722535833313,-1000.0,0.000109,2]
[333828657,1722535833328,-1000.0,0.000109,2]
[333828658,1722535833347,-1000.0,0.000109,2]
[333828659,1722535833364,-1000.0,0.000109,2]
[333828660,1722535833383,-1000.0,0.000109,3]
[333828661,1722535833398,-1000.0,0.000109,2]
[333828662,1722535833433,-1000.0,0.000109,2]
[333828663,1722535833450,-1000.0,0.000109,2]
[333828664,1722535833466,-1000.0,0.000109,3]
[333828665,1722535833484,-1000.0,0.000109,3]
[333828666,1722535833500,-300.0,0.000109,3]
[333828667,1722535833517,-174.68,0.000109,2]
[333828668,1722535833533,-150.99,0.00010932,2]
[333828669,1722535833552,-280.91,0.00010942,2]
[333828670,1722535833568,-250.0,0.00010959,2]
[333828671,1722535833586,-150.0,0.00010959,2]
[333828672,1722535833602,-250.0,0.00011,2]
[333828673,1722535833619,-1000.0,0.00011,2]
[333828674,1722535833636,-1035.0,0.00011,2]
[333828675,1722535833653,-1004.0,0.00011,3]
[333828676,1722535833670,-1002.0,0.00011,3]
[333828677,1722535833686,-537.14137497,0.00011005,2]
[333828678,1722535833704,-1000.0,0.000111,3]
[333828679,1722535833720,-1000.0,0.000111,3]
[333828680,1722535833736,-1000.0,0.000111,2]
[333828681,1722535833753,-1000.0,0.000111,2]
[333828682,1722535833769,-297.18571325,0.00011105,2]
[333828683,1722535833786,-281.48530578,0.00011105,2]
[333828684,1722535833804,-218.69189255,0.00011105,2]
[333828685,1722535833820,-210.84776497,0.00011105,2]
[333828686,1722535833838,-155.0,0.00011105,2]
[333828687,1722535833854,-555.0,0.00011105,2]
[333828688,1722535833872,-528.40182091,0.00011105,2]
[333828689,1722535833890,-363.80421493,0.00011105,2]
[333828690,1722535833906,-10524.20000003,0.00011105,2]
[333828691,1722535833925,-15467.9621784,0.00011105,2]
[333828692,1722535833943,-438.20136165,0.00011105,2]
[333828693,1722535833961,-288.23819435,0.00011105,2]
[333828694,1722535833977,-1256.27829447,0.00011105,2]
[333828695,1722535834000,-5321.7841887,0.00011105,2]
[333828696,1722535834022,-205.72998009,0.00011105,2]
[333828697,1722535834039,-5000.0,0.00011105,2]
[333828698,1722535834056,-7269.27662273,0.00011105,2]
[333828699,1722535834072,-519.62430261,0.00011105,2]
[333828700,1722535834089,-5398.55869267,0.00011105,2]
[333828701,1722535834104,-3400.91875942,0.00011105,2]
[333828702,1722535834121,-3975.93139247,0.00011105,2]
[333828703,1722535834138,-4472.47771748,0.00011105,2]
[333828704,1722535834154,-3117.7279925,0.0001116,2]
[333828705,1722535834171,-3117.7279925,0.0001116,2]
[333828706,1722535834187,-25298.4632004,0.00011186,2]
[333828707,1722535834204,-22636.62649334,0.00011186,2]
[333828708,1722535834221,-1926.73701932,0.00011186,2]
[333828709,1722535834236,-2727.16525437,0.00011186,2]
[333828710,1722535834254,-3079.05538157,0.00011206,2]
[333828711,1722535834272,-155.0,0.00011206,2]
[333828712,1722535834290,-155.0,0.00011206,2]
[333828713,1722535834307,-395.80581552,0.0001125,2]
[333828714,1722535834325,-1000.0,0.000113,3]
[333828715,1722535834342,-1000.0,0.000113,3]
[333828716,1722535834358,-9456.94,0.000113,2]
[333828717,1722535834374,-2143.78276528,0.00011321,2]
[333828718,1722535834391,-1183.81771126,0.00011322,2]
[333828719,1722535834408,-2383.95531201,0.00011324,2]
[333828720,1722535834424,-1500.0,0.00011324,2]
[333828721,1722535834441,-171.2,0.00011383,2]
[333828722,1722535834458,-298.34472477,0.00011384,2]
[333828723,1722535834474,-719.24573666,0.00011384,2]
[333828724,1722535834490,-365.36537875,0.00011384,2]
[333828725,1722535834507,-1274.29800748,0.00011525,2]
[333828726,1722535834524,-189.77496908,0.00011525,2]
[333828727,1722535834541,-1274.29800748,0.00011525,2]
[333828728,1722535834559,-1137.94693277,0.00011525,2]
[333828729,1722535834575,-1112.24767944,0.00011525,2]
[333828730,1722535834591,-264.23719677,0.00011525,2]
[333828731,1722535834606,-270.28818504,0.00011525,2]
[333828732,1722535834624,-155.0,0.00011525,2]
[333828733,1722535834640,-587.0,0.000116,2]
[333828734,1722535834657,-26796.58453104,0.00011678,2]
[333828735,1722535834673,-1764.26681513,0.00011678,2]
[333828736,1722535834691,-800.0,0.00011702,2]
[333828737,1722535834708,-395.80581552,0.000118,2]
[333828738,1722535834724,-1049.57124552,0.0001185,2]
[333828739,1722535834742,-722.68329662,0.0001185,2]
[333828740,1722535834760,-628.0054999,0.0001185,2]
[333828741,1722535834777,-600.14164396,0.0001185,2]
[333828742,1722535834794,-628.0054999,0.0001185,2]
[333828743,1722535834811,-203.20879356,0.0001185,2]
[333828744,1722535834828,-1621.96390599,0.0001185,2]
[333828745,1722535834844,-652.98954069,0.0001185,2]
[333828746,1722535834861,-155.0,0.0001185,2]
[333828747,1722535834878,-243.00643023,0.0001185,2]
[333828748,1722535834895,-164.23596765,0.0001185,2]
[333828749,1722535834911,-155.0,0.0001185,2]
[333828750,1722535834928,-484.69898026,0.0001185,2]
[333828751,1722535834945,-755.30539578,0.0001185,2]
[333828752,1722535834961,-296.74034116,0.0001185,2]
[333828753,1722535834977,-805.44,0.00011863,2]
[333828754,1722535834994,-165.34169392,0.00011896,2]
[333828755,1722535835015,-165.34169392,0.00011896,2]
[333828756,1722535835031,-155.0,0.00011896,2]
[333828757,1722535835047,-155.0,0.00011896,2]
[333828758,1722535835067,-155.0,0.00011896,2]
[333828759,1722535835083,-155.0,0.00011896,2]
[333828760,1722535835099,-347.32373286,0.00011896,2]
[333828761,1722535835114,-1073.58046777,0.00011896,2]
[333828762,1722535835128,-196.9278947,0.00011896,2]
[333828763,1722535835143,-155.0,0.00011896,2]
[333828764,1722535835158,-157.94425231,0.00011896,2]
[333828765,1722535835173,-265.17493776,0.00011896,2]
[333828766,1722535835189,-1787.67168,0.00011905,2]
[333828767,1722535835204,-537.14137495,0.00011952,2]
[333828768,1722535835220,-649.20351135,0.00011959,2]
[333828769,1722535835235,-1175.68290634,0.00011959,2]
[333828770,1722535835250,-357.09487431,0.00011959,2]
[333828771,1722535835266,-206.56189729,0.00011959,2]
[333828772,1722535835282,-359.03203292,0.00011959,2]
[333828773,1722535835298,-649.20351135,0.00011959,2]
[333828774,1722535835314,-1175.68290634,0.00011959,2]
[333828775,1722535835330,-686.31468402,0.00011959,2]
[333828776,1722535835348,-3000.0,0.00012,2]
[333828777,1722535835364,-3000.0,0.00012,2]
[333828778,1722535835381,-550.0,0.00012,2]
[333828779,1722535835399,-29615.43,0.00012087,2]
[333828780,1722535835415,-18492.93,0.00012087,2]
[333828781,1722535835433,-5125.0,0.00012237,2]
[333828782,1722535835449,-1201.0,0.00012237,2]
[333828783,1722535835465,-150.0,0.00012237,2]
[333828784,1722535835481,-151.67,0.00012274,2]
[333828785,1722535835499,-1060.07,0.00012274,2]
[333828786,1722535835515,-153.51,0.00012274,2]
[333828787,1722535835532,-150.0,0.00012274,2]
[333828788,1722535835549,-323.48,0.00012274,2]
[333828789,1722535835566,-356.08,0.00012274,2]
[333828790,1722535835581,-356.08,0.00012274,2]
[333828791,1722535835596,-216.56,0.00012274,2]
[333828792,1722535835612,-280.91,0.0001231,2]
[333828793,1722535835627,-395.80581552,0.0001235,2]
[333828794,1722535835643,-1653.61013447,0.0001236,2]
[333828795,1722535835659,-210.80539627,0.0001236,2]
[333828796,1722535835675,-367.51291896,0.0001236,2]
[333828797,1722535835690,-155.0,0.0001236,2]
[333828798,1722535835706,-1659.95,0.0001236,2]
[333828799,1722535835721,-367.51291896,0.0001236,2]
[333828800,1722535835737,-155.0,0.0001236,2]
[333828801,1722535835752,-155.0,0.0001236,2]
[333828802,1722535835768,-202.68830391,0.0001236,2]
[333828803,1722535835783,-379.95855132,0.00012391,2]
[333828804,1722535835797,-476.4573429,0.00012391,2]
[333828805,1722535835813,-164.21268611,0.00012391,2]
[333828806,1722535835827,-155.28318094,0.00012391,2]
[333828807,1722535835842,-600.0,0.000124,4]
[333828808,1722535835857,-158.84273734,0.0001246,2]
[333828809,1722535835873,-159.44788772,0.0001246,2]
[333828810,1722535835888,-900.0,0.000125,4]
[333828811,1722535835904,-346.67846724,0.00012513,2]
[333828812,1722535835921,-454.12693481,0.0001254,2]
[333828813,1722535835935,-150.0,0.00012588,2]
[333828814,1722535835950,-150.0,0.00012588,2]
[333828815,1722535835965,-150.0,0.00012588,2]
[333828816,1722535835981,-1580.0,0.00012588,2]
[333828817,1722535835995,-450.0,0.00012588,2]
[333828818,1722535836023,-811.0,0.00012588,2]
[333828819,1722535836038,-446.0,0.00012588,2]
[333828820,1722535836052,-150.0,0.00012588,2]
[333828821,1722535836067,-349.0,0.00012588,2]
[333828822,1722535836083,-1554.952,0.00012588,2]
[333828823,1722535836098,-1200.0,0.000126,4]
[333828824,1722535836112,-387.79038477,0.00012603,2]
[333828825,1722535836127,-346.67846722,0.0001261,2]
[333828826,1722535836142,-1126.31007268,0.00012641,2]
[333828827,1722535836157,-1600.0,0.000127,4]
[333828828,1722535836172,-946.51,0.00012705,2]
[333828829,1722535836187,-346.67846722,0.00012707,2]
[333828830,1722535836202,-411.33551761,0.00012721,2]
[333828831,1722535836218,-500.0,0.00012741,2]
[333828832,1722535836232,-500.0,0.00012749,2]
[333828833,1722535836246,-26796.58453104,0.00012756,2]
[333828834,1722535836260,-1764.26681513,0.00012756,2]
[333828835,1722535836274,-500.0,0.00012758,2]
[333828836,1722535836289,-823.0,0.0001276,2]
[333828837,1722535836304,-500.0,0.00012767,2]
[333828838,1722535836319,-500.0,0.00012776,2]
[333828839,1722535836333,-500.0,0.00012785,2]